bitfinex-derivatives/quotes_BTCF0:USTF0_20250713
["timestamp","ask_amount","ask_price","bid_price","bid_amount"]
[1752391600840,0.26258974,118040.0,118030.0,2.50608269]
[1752391602940,0.26258974,118040.0,118030.0,2.52979269]
[1752391605740,0.09321384,118040.0,118030.0,2.70056227]
[1752391609445,0.26258964,118040.0,118030.0,2.70056227]
[1752391610642,0.26258964,118040.0,118030.0,2.52979269]
[1752391611243,0.43335922,118040.0,118030.0,2.52979269]
[1752391611644,0.26258964,118040.0,118030.0,2.52979269]
[1752391612347,0.43335922,118040.0,118030.0,2.52979269]
[1752391613746,0.26258964,118040.0,118030.0,2.52979269]
[1752391614047,0.43335922,118040.0,118030.0,2.52979269]
[1752391616048,0.26258964,118040.0,118030.0,2.52979269]
[1752391616249,0.43335922,118040.0,118030.0,2.52979269]
[1752391618553,0.26258964,118040.0,118030.0,2.52979269]
[1752391621154,0.26258964,118040.0,118030.0,2.16899269]
[1752391621654,0.26258964,118040.0,118030.0,2.52979269]
[1752391622356,0.09321384,118040.0,118030.0,2.52979269]
[1752391623755,0.26258964,118040.0,118030.0,2.52979269]
[1752391624956,0.09321384,118040.0,118030.0,2.52979269]
[1752391625155,0.26258964,118040.0,118030.0,2.52979269]
[1752391625358,0.26258964,118040.0,118030.0,2.35902311]
[1752391625654,0.26258964,118040.0,118030.0,2.52979269]
[1752391625848,0.26252687,118040.0,118030.0,2.52979269]
[1752391627565,0.43329645,118040.0,118030.0,2.52979269]
[1752391627766,0.26252687,118040.0,118030.0,2.52979269]
[1752391628066,0.43329645,118040.0,118030.0,2.52979269]
[1752391629969,0.26252687,118040.0,118030.0,2.52979269]
[1752391630166,0.43329645,118040.0,118030.0,2.52979269]
[1752391630565,0.26252687,118040.0,118030.0,2.52979269]
[1752391640875,0.26252687,118040.0,118030.0,2.50608269]
[1752391641474,0.26252687,118040.0,118030.0,2.33531311]
[1752391641775,0.26252687,118040.0,118030.0,2.50608269]
[1752391642877,0.26252687,118040.0,118030.0,2.53104269]
[1752391646779,0.26252687,118040.0,118030.0,2.50608269]
[1752391648882,0.26252687,118040.0,118030.0,2.53104269]
[1752391652790,0.26252687,118040.0,118030.0,2.50608269]
[1752391654892,0.26252687,118040.0,118030.0,2.53104269]
[1752391655491,0.26252687,118040.0,118030.0,2.17024269]
[1752391656991,0.26252687,118040.0,118030.0,2.53104269]
[1752391658592,0.46347645,118040.0,118030.0,1.38280269]
[1752391658796,0.68070603,118040.0,118030.0,1.78671311]
[1752391659094,0.50993645,118040.0,118030.0,1.45748269]
[1752391659694,0.50993645,118040.0,118030.0,1.09668269]
[1752391664698,0.87073645,118040.0,118030.0,1.09668269]
[1752391666896,0.50993645,118040.0,118030.0,1.09668269]
[1752391672400,0.33916687,118040.0,118030.0,1.09668269]
[1752391672597,0.50993645,118040.0,118030.0,1.09668269]
[1752391678301,0.50993645,118040.0,118030.0,0.92591311]
[1752391678504,0.50993645,118040.0,118030.0,1.09668269]
[1752391679104,0.50993645,118040.0,118030.0,0.92591311]
[1752391679304,0.50993645,118040.0,118030.0,1.09668269]
[1752391680905,0.4890147,118040.0,118030.0,1.09668269]
[1752391681105,0.5101022,118040.0,118030.0,1.09668269]
[1752391685106,0.5101022,118040.0,118030.0,0.92591311]
[1752391685304,0.5101022,118040.0,118030.0,1.09668269]
[1752391686508,0.5101022,118040.0,118030.0,0.92591311]
[1752391686710,0.5101022,118040.0,118030.0,1.09668269]
[1752391690118,0.09331682,118040.0,118030.0,1.26745227]
[1752391690307,0.09331682,118040.0,118030.0,1.62825227]
[1752391690612,0.26269262,118040.0,118030.0,1.62825227]
[1752391691114,0.26269262,118040.0,118030.0,1.45748269]
[1752391691512,0.26269262,118040.0,118030.0,2.12825227]
[1752391693206,0.26269262,118040.0,118030.0,1.95748269]
[1752391694707,0.26269262,118040.0,118030.0,2.12825227]
[1752391695010,0.26269262,118040.0,118030.0,1.95748269]
[1752391695313,0.09331682,118040.0,118030.0,1.95748269]
[1752391697114,0.09331682,118040.0,118030.0,2.12825227]
[1752391698610,0.09331682,118040.0,118030.0,1.78671311]
[1752391698810,0.09331682,118040.0,118030.0,2.12825227]
[1752391700812,0.09331682,118040.0,118030.0,1.95748269]
[1752391701915,0.26269262,118040.0,118030.0,1.95748269]
[1752391703412,0.09331682,118040.0,118030.0,1.95748269]
[1752391710520,0.26269272,118040.0,118030.0,1.95748269]
[1752391711214,0.26269272,118040.0,118030.0,1.59668269]
[1752391711520,0.26269272,118040.0,118030.0,1.95748269]
[1752391711725,0.26269272,118040.0,118030.0,1.59668269]
[1752391711919,0.26269272,118040.0,118030.0,1.95748269]
[1752391712220,0.26269272,118040.0,118030.0,1.59668269]
[1752391712515,0.4334623,118040.0,118030.0,1.42591311]
[1752391712715,0.4334623,118040.0,118030.0,1.59668269]
[1752391712915,0.4334623,118040.0,118030.0,1.95748269]
[1752391713320,0.4334623,118040.0,118030.0,1.59668269]
[1752391713714,0.09331682,118040.0,118030.0,1.95748269]
[1752391714118,0.26269272,118040.0,118030.0,1.95748269]
[1752391719128,0.26269272,118040.0,118030.0,1.59668269]
[1752391719827,0.26269272,118040.0,118030.0,1.95748269]
[1752391720232,0.26269272,118040.0,118030.0,1.59668269]
[1752391720428,0.26269272,118040.0,118030.0,1.95748269]
[1752391720829,0.26269272,118040.0,118030.0,1.59668269]
[1752391721023,0.29527272,118040.0,118030.0,1.42591311]
[1752391721227,0.29527272,118040.0,118030.0,1.59668269]
[1752391721630,0.29527272,118040.0,118030.0,1.95748269]
[1752391722131,0.29527272,118040.0,118030.0,1.59668269]
[1752391722828,0.29527272,118040.0,118030.0,1.95748269]
[1752391723032,0.29527272,118040.0,118030.0,1.59668269]
[1752391724035,0.29527272,118040.0,118030.0,1.42591311]
[1752391724235,0.29527272,118040.0,118030.0,1.59668269]
[1752391724435,0.29527272,118040.0,118030.0,1.95748269]
[1752391724634,0.29527272,118040.0,118030.0,1.59668269]
[1752391724833,0.29527272,118040.0,118030.0,1.95748269]
[1752391726535,0.29527272,118040.0,118030.0,1.59668269]
[1752391726934,0.29527272,118040.0,118030.0,1.95748269]
[1752391727133,0.29527272,118040.0,118030.0,1.59668269]
[1752391727332,0.29527272,118040.0,118030.0,1.95748269]
[1752391728442,0.26269272,118040.0,118030.0,1.59668269]
[1752391729039,0.26269272,118040.0,118030.0,1.95748269]
[1752391729340,0.26269272,118040.0,118030.0,1.59668269]
[1752391729539,0.29527272,118040.0,118030.0,1.59668269]
[1752391729940,0.34397272,118040.0,118030.0,1.59668269]
[1752391730437,0.34397272,118040.0,118030.0,1.95748269]
[1752391730740,0.34397272,118040.0,118030.0,1.59668269]
[1752391730943,0.34397272,118040.0,118030.0,1.09668269]
[1752391731139,0.29527272,118040.0,118030.0,1.09668269]
[1752391731340,0.29527272,118040.0,118030.0,1.45748269]
[1752391731842,0.29527272,118040.0,118030.0,1.09668269]
[1752391732245,0.29527272,118040.0,118030.0,1.45748269]
[1752391733248,0.29527272,118040.0,118030.0,1.09668269]
[1752391733849,0.29527272,118040.0,118030.0,1.45748269]
[1752391734048,0.29527272,118040.0,118030.0,1.09668269]
[1752391734346,0.29527272,118040.0,118030.0,1.45748269]
[1752391735047,0.29527272,118040.0,118030.0,1.09668269]
[1752391735246,0.29527272,118040.0,118030.0,1.45748269]
[1752391736152,0.29527272,118040.0,118030.0,1.09668269]
[1752391736348,0.29527272,118040.0,118030.0,1.45748269]
[1752391736848,0.27418522,118040.0,118030.0,1.45748269]
[1752391737049,0.29520726,118040.0,118030.0,1.45748269]
[1752391738044,0.29520726,118040.0,118030.0,1.09668269]
[1752391738348,0.29520726,118040.0,118030.0,1.45748269]
[1752391738951,0.29520726,118040.0,118030.0,1.09668269]
[1752391739254,0.29520726,118040.0,118030.0,1.45748269]
[1752391739951,0.29520726,118040.0,118030.0,0.92591311]
[1752391740144,0.29520726,118040.0,118030.0,1.09668269]
[1752391740549,0.29520726,118040.0,118030.0,1.45748269]
[1752391740751,0.29520726,118040.0,118030.0,1.09668269]
[1752391741553,0.29520726,118040.0,118030.0,1.45748269]
[1752391741743,0.29520726,118040.0,118030.0,1.09668269]
[1752391741946,0.29520726,118040.0,118030.0,1.45748269]
[1752391742952,0.29520726,118040.0,118030.0,1.28671311]
[1752391743153,0.29520726,118040.0,118030.0,1.45748269]
[1752391747851,0.29520726,118040.0,118030.0,1.28671311]
[1752391748051,0.29520726,118040.0,118030.0,1.45748269]
[1752391761457,0.29520726,118040.0,118030.0,1.09668269]
[1752391761663,0.29520726,118040.0,118030.0,1.45748269]
[1752391776772,0.29530723,118040.0,118030.0,1.45748269]
[1752391780878,0.29530723,118040.0,118030.0,1.28671311]
[1752391781079,0.29530723,118040.0,118030.0,1.45748269]
[1752391799997,0.29530723,118040.0,118030.0,1.28671311]
[1752391800199,0.29530723,118040.0,118030.0,1.45748269]
[1752391804204,0.26272723,118040.0,118030.0,1.45748269]
[1752391805803,0.26272723,118040.0,118030.0,1.62825227]
[1752391808600,0.26272723,118040.0,118030.0,1.45748269]
[1752391818211,0.26272723,118040.0,118030.0,1.62825227]
[1752391818814,0.26272723,118040.0,118030.0,1.45748269]
[1752391823014,0.09335133,118040.0,118030.0,1.45748269]
[1752391823219,0.26272693,118040.0,118030.0,1.45748269]
[1752391824921,0.09335133,118040.0,118030.0,1.45748269]
[1752391825224,0.26272693,118040.0,118030.0,1.45748269]
[1752391828116,0.09335133,118040.0,118030.0,1.45748269]
[1752391828622,0.26272693,118040.0,118030.0,1.45748269]
[1752391830724,0.09335133,118040.0,118030.0,1.45748269]
[1752391830924,0.26272693,118040.0,118030.0,1.45748269]
[1752391833820,0.09335133,118040.0,118030.0,1.45748269]
[1752391836325,0.26272693,118040.0,118030.0,1.45748269]
[1752391837715,0.09335133,118040.0,118030.0,1.45748269]
[1752391838618,0.26272693,118040.0,118030.0,1.45748269]
[1752391840124,0.09335133,118040.0,118030.0,1.45748269]
[1752391840521,0.26272693,118040.0,118030.0,1.45748269]
[1752391848633,0.09335133,118040.0,118030.0,1.45748269]
[1752391850436,0.09335133,118040.0,118030.0,1.62825227]
[1752391852330,0.26272693,118040.0,118030.0,1.62825227]
[1752391852831,0.26272693,118040.0,118030.0,1.45748269]
[1752391858339,0.26272693,118040.0,118030.0,1.09668269]
[1752391858540,0.26272693,118040.0,118030.0,1.45748269]
[1752391860840,0.26272693,118040.0,118030.0,1.43252269]
[1752391861541,0.29289693,118040.0,118030.0,1.43252269]
[1752391861740,0.34188693,118040.0,118030.0,1.43252269]
[1752391862839,0.34188693,118040.0,118030.0,1.45542269]
[1752391865848,0.34188693,118040.0,118030.0,1.28465311]
[1752391866142,0.34188693,118040.0,118030.0,1.45542269]
[1752391866947,0.34188693,118040.0,118030.0,1.28465311]
[1752391867148,0.34188693,118040.0,118030.0,1.45542269]
[1752391874646,0.34188693,118040.0,118030.0,1.28465311]
[1752391874953,0.34188693,118040.0,118030.0,1.45542269]
[1752391875461,0.29289693,118040.0,118030.0,1.45542269]
[1752391889760,0.68201609,118040.0,118030.0,0.17978291]
[1752391889965,1.06270609,118040.0,118030.0,0.8562058]
[1752391890465,1.06270609,118040.0,118030.0,1.02697538]
[1752391891667,0.72116693,118040.0,118030.0,1.02697538]
[1752391891864,1.06270609,118040.0,118030.0,1.02697538]
[1752391893167,0.70190609,118040.0,118030.0,1.02697538]
[1752391893467,0.53113651,118040.0,118030.0,1.02697538]
[1752391898470,0.36036693,118040.0,118030.0,1.02697538]
[1752391906377,0.34047693,118040.0,118030.0,1.02697538]
[1752391908679,0.34047693,118040.0,118030.0,1.02697538]
[1752391913882,0.34048185,118040.0,118030.0,1.02697538]
[1752391919479,0.51125143,118040.0,118030.0,1.02697538]
[1752391919983,0.34048185,118040.0,118030.0,1.02697538]
[1752391922580,0.34048185,118040.0,118030.0,1.38777538]
[1752391922779,0.34048185,118040.0,118030.0,1.02697538]
[1752391930696,0.34048185,118040.0,118030.0,1.38777538]
[1752391930884,0.34048185,118040.0,118030.0,1.02697538]
[1752391931991,0.34048185,118040.0,118030.0,1.38777538]
[1752391932189,0.26273185,118040.0,118030.0,1.38777538]
[1752391932593,0.29389185,118040.0,118030.0,1.38777538]
[1752391932786,0.34283185,118040.0,118030.0,1.02697538]
[1752391933093,0.34283185,118040.0,118030.0,1.38777538]
[1752391934195,0.34283185,118040.0,118030.0,1.45387275]
[1752391939098,0.34283185,118040.0,118030.0,1.09307275]
[1752391947714,0.34283185,118040.0,118030.0,0.51807275]
[1752391947909,0.34283185,118040.0,118030.0,1.09307275]
[1752391974135,0.29389185,118040.0,118030.0,1.09307275]
[1752391985446,0.29389185,118040.0,118030.0,1.45387275]
[1752391985849,0.29389185,118040.0,118030.0,1.09307275]
[1752391990047,0.29389185,118040.0,118030.0,1.45387275]
[1752391990346,0.29389185,118040.0,118030.0,1.09307275]
[1752391990553,0.29389185,118040.0,118030.0,1.45387275]
[1752391990953,0.29389185,118040.0,118030.0,1.09307275]
[1752391991553,0.29389185,118040.0,118030.0,1.45387275]
[1752391991754,0.29389185,118040.0,118030.0,1.09307275]
[1752391993653,0.27276492,118040.0,118030.0,1.09307275]
[1752391993855,0.29369612,118040.0,118030.0,1.09307275]
[1752391995763,0.29369612,118040.0,118030.0,1.45387275]
[1752391995962,0.29369612,118040.0,118030.0,1.09307275]
[1752391996261,0.29369612,118040.0,118030.0,1.45387275]
[1752391996453,0.29369612,118040.0,118030.0,1.09307275]
[1752391997061,0.29369612,118040.0,118030.0,1.45387275]
[1752391997357,0.29369612,118040.0,118030.0,1.09307275]
[1752391997860,0.29369612,118040.0,118030.0,1.45387275]
[1752391998062,0.29369612,118040.0,118030.0,1.09307275]
[1752392000064,0.5111557,118040.0,118030.0,1.09307275]
[1752392000363,0.34038612,118040.0,118030.0,1.09307275]
[1752392000761,0.34038612,118040.0,118030.0,0.92230317]
[1752392000954,0.34038612,118040.0,118030.0,1.09307275]
[1752392002669,0.5111557,118040.0,118030.0,1.09307275]
[1752392007666,0.34038612,118040.0,118030.0,1.09307275]
[1752392007866,0.5111557,118040.0,118030.0,1.09307275]
[1752392011267,0.34038612,118040.0,118030.0,1.09307275]
[1752392012373,0.34038612,118040.0,118030.0,0.92230317]
[1752392012673,0.34038612,118040.0,118030.0,1.09307275]
[1752392013975,0.29369612,118040.0,118030.0,1.09307275]
[1752392015976,0.29369612,118040.0,118030.0,0.92230317]
[1752392016274,0.29369612,118040.0,118030.0,1.09307275]
[1752392018777,0.29369612,118040.0,118030.0,1.07017275]
[1752392019176,0.4644657,118040.0,118030.0,1.07017275]
[1752392020070,0.29369612,118040.0,118030.0,1.07017275]
[1752392020877,0.29369612,118040.0,118030.0,1.09440275]
[1752392024679,0.4644657,118040.0,118030.0,1.09440275]
[1752392025568,0.33945612,118040.0,118030.0,1.09440275]
[1752392026883,0.5102257,118040.0,118030.0,1.09440275]
[1752392027682,0.5102257,118040.0,118030.0,0.92363317]
[1752392027879,0.5102257,118040.0,118030.0,1.09440275]
[1752392029081,0.4892945,118040.0,118030.0,1.09440275]
[1752392029579,0.51017012,118040.0,118030.0,1.09440275]
[1752392030280,0.7008297,118040.0,118030.0,0.113146]
[1752392030480,1.0616297,118040.0,118030.0,0.85867558]
[1752392030682,0.53006012,118040.0,118030.0,0.85867558]
[1752392030979,0.89086012,118040.0,118030.0,0.85867558]
[1752392041086,0.53006012,118040.0,118030.0,0.85867558]
[1752392041290,0.89086012,118040.0,118030.0,0.85867558]
[1752392045191,0.53006012,118040.0,118030.0,0.85867558]
[1752392045390,0.89086012,118040.0,118030.0,0.85867558]
[1752392049499,0.89086012,118040.0,118030.0,1.02806528]
[1752392050903,0.89086012,118040.0,118030.0,0.85867558]
[1752392051103,0.72009054,118040.0,118030.0,1.02806528]
[1752392051397,1.46558012,118040.0,118030.0,0.85867558]
[1752392051803,1.29481054,118040.0,118030.0,1.02806528]
[1752392052103,1.46558012,118040.0,118030.0,1.02806528]
[1752392053105,1.46558012,118040.0,118030.0,0.45330528]
[1752392053304,1.46558012,118040.0,118030.0,1.02802528]
[1752392055809,1.29481054,118040.0,118030.0,1.02802528]
[1752392056108,1.46558012,118040.0,118030.0,1.02802528]
[1752392056609,0.89086012,118040.0,118030.0,1.02802528]
[1752392056909,1.46554012,118040.0,118030.0,1.02802528]
[1752392058813,1.10474012,118040.0,118030.0,1.02802528]
[1752392060313,1.10474012,118040.0,118030.0,0.8572557]
[1752392060612,1.10474012,118040.0,118030.0,1.02802528]
[1752392061615,0.93397054,118040.0,118030.0,1.02802528]
[1752392061818,1.10474012,118040.0,118030.0,1.02802528]
[1752392062413,0.26248054,118040.0,118030.0,1.02802528]
[1752392062613,0.48993276,118060.0,118040.0,0.2726154]
[1752392062614,0.48715554,118060.0,118040.0,0.2726154]
[1752392062818,0.48715554,118060.0,118050.0,0.61414016]
[1752392062819,0.27070224,118060.0,118050.0,0.61414016]
[1752392063317,1.42402224,118060.0,118050.0,0.97494016]
[1752392063714,1.42402224,118060.0,118050.0,0.633401]
[1752392064016,1.42402224,118060.0,118050.0,0.80417058]
[1752392065118,0.27070224,118060.0,118050.0,0.80417058]
[1752392065317,0.27070224,118060.0,118050.0,0.633401]
[1752392065518,0.27370224,118060.0,118050.0,0.80417058]
[1752392072722,0.27370224,118060.0,118050.0,0.633401]
[1752392073022,0.27370224,118060.0,118050.0,0.80417058]
[1752392074525,0.29441844,118060.0,118050.0,0.80417058]
[1752392076124,1.09725814,118060.0,118050.0,0.02467]
[1752392080023,0.169361,118050.0,118040.0,0.04389527]
[1752392080229,2.1471169,118050.0,118040.0,0.01934527]
[1752392080423,1.97634732,118050.0,118040.0,0.01934527]
[1752392081438,1.97634732,118050.0,118040.0,0.04409527]
[1752392082227,1.97834732,118050.0,118040.0,0.04409527]
[1752392085939,1.80757774,118050.0,118040.0,0.04409527]
[1752392086137,1.97834732,118050.0,118040.0,0.04409527]
[1752392090743,1.97834732,118050.0,118040.0,0.02664427]
[1752392091541,1.97786678,118050.0,118040.0,0.22772385]
[1752392091739,1.4264072,118050.0,118040.0,0.44652925]
[1752392091941,1.59717678,118050.0,118040.0,0.61729883]
[1752392092242,1.59717678,118050.0,118040.0,0.44652925]
[1752392093534,0.2721272,118050.0,118040.0,0.27575967]
[1752392093737,0.2721272,118050.0,118040.0,0.63655967]
[1752392093937,0.2721272,118050.0,118040.0,0.97809883]
[1752392094242,0.1920772,118050.0,118040.0,0.97809883]
[1752392095342,0.1920772,118050.0,118040.0,1.55745883]
[1752392095839,0.1920772,118050.0,118040.0,1.21591967]
[1752392096039,0.1920772,118050.0,118040.0,1.55745883]
[1752392096842,0.1920772,118050.0,118040.0,1.44324235]
[1752392113062,0.1920772,118050.0,118040.0,1.44240235]
[1752392116865,0.19195674,118050.0,118040.0,1.44240235]
[1752392118869,0.19195674,118050.0,118040.0,1.55606819]
[1752392119768,0.02259574,118050.0,118040.0,1.55606819]
[1752392120268,0.02259574,118050.0,118040.0,2.05606819]
[1752392129275,0.02259574,118050.0,118040.0,1.69526819]
[1752392129575,0.02259574,118050.0,118040.0,2.05606819]
[1752392129977,0.02259574,118050.0,118040.0,1.71507967]
[1752392130178,0.02307628,118050.0,118040.0,2.05606819]
[1752392137882,0.02307628,118050.0,118040.0,1.71507967]
[1752392138084,0.02307628,118050.0,118040.0,2.05606819]
[1752392166200,0.02301015,118050.0,118040.0,2.05606819]
[1752392171199,0.19237135,118050.0,118040.0,2.05606819]
[1752392172599,0.19189081,118050.0,118040.0,2.05606819]
[1752392172803,0.19237135,118050.0,118040.0,2.05606819]
[1752392173803,0.02301015,118050.0,118040.0,2.05606819]
[1752392179909,0.02301015,118050.0,118040.0,1.71507967]
[1752392180106,0.02301015,118050.0,118040.0,2.05606819]
[1752392191821,0.02301015,118050.0,118040.0,1.69526819]
[1752392192119,0.02301015,118050.0,118040.0,2.05606819]
[1752392193120,0.02301015,118050.0,118040.0,1.69526819]
[1752392193322,0.02301015,118050.0,118040.0,2.05606819]
[1752392196118,0.02301015,118050.0,118040.0,2.05417392]
[1752392196422,0.02301015,118050.0,118040.0,2.03906819]
[1752392197617,0.02501015,118050.0,118040.0,2.03906819]
[1752392199227,0.00448054,118050.0,118040.0,2.03906819]
[1752392199528,0.02491878,118050.0,118040.0,2.03906819]
[1752392200528,0.02491878,118050.0,118040.0,1.69807967]
[1752392200727,0.02491878,118050.0,118040.0,2.03906819]
[1752392206831,0.02491878,118050.0,118040.0,1.69807967]
[1752392207126,0.02491878,118050.0,118040.0,2.03906819]
[1752392210029,0.02443824,118050.0,118040.0,2.03906819]
[1752392210234,0.02491878,118050.0,118040.0,2.03906819]
[1752392214435,0.02491878,118050.0,118040.0,2.05691258]
[1752392214734,0.02511878,118050.0,118040.0,2.05691258]
[1752392220839,0.02463824,118050.0,118040.0,2.05691258]
[1752392221036,0.02511878,118050.0,118040.0,2.05691258]
[1752392222942,0.02511878,118050.0,118040.0,2.22740684]
[1752392223144,0.02511878,118050.0,118040.0,2.05691258]
[1752392223343,0.02515046,118050.0,118040.0,2.05691258]
[1752392223640,0.02515046,118050.0,118040.0,2.22740684]
[1752392235152,0.02515046,118050.0,118040.0,2.05691258]
[1752392237251,0.02515046,118050.0,118040.0,2.22740684]
[1752392237752,0.02515046,118050.0,118040.0,2.05691258]
[1752392247154,0.02466992,118050.0,118040.0,2.05691258]
[1752392247460,0.02515046,118050.0,118040.0,2.05691258]
[1752392249267,0.02515046,118050.0,118040.0,1.71592406]
[1752392249461,0.02515046,118050.0,118040.0,2.05691258]
[1752392249760,0.02515046,118050.0,118040.0,2.22740684]
[1752392249955,0.02515046,118050.0,118040.0,2.05691258]
[1752392255968,0.02466992,118050.0,118040.0,2.05691258]
[1752392256168,0.02515046,118050.0,118040.0,2.05691258]
[1752392258269,0.02466992,118050.0,118040.0,2.05691258]
[1752392258470,0.02515046,118050.0,118040.0,1.47839258]
[1752392258768,0.02515046,118050.0,118040.0,2.05507258]
[1752392265072,0.02515046,118050.0,118040.0,2.22556684]
[1752392266172,0.02515046,118050.0,118040.0,2.05507258]
[1752392266375,0.01018174,118060.0,118050.0,0.2619912]
[1752392266674,0.2492004,118070.0,118060.0,0.2619769]
[1752392266871,0.2492004,118070.0,118060.0,0.98150941]
[1752392266872,0.07986,118070.0,118060.0,0.98150941]
[1752392267172,0.10482,118070.0,118060.0,0.64052089]
[1752392267368,0.2741525,118070.0,118060.0,0.98150941]
[1752392267573,0.2741525,118070.0,118060.0,1.48150941]
[1752392267874,0.10482,118070.0,118060.0,1.48150941]
[1752392268063,0.10482,118070.0,118060.0,1.47950941]
[1752392268267,0.07986,118070.0,118060.0,1.47950941]
[1752392271488,0.07909789,118090.0,118070.0,0.09263]
[1752392271682,0.0165833,118100.0,118090.0,0.2570639]
[1752392271877,0.08170308,118110.0,118100.0,0.2264895]
[1752392272084,0.08170308,118110.0,118100.0,1.70813228]
[1752392272280,0.08170308,118110.0,118100.0,1.70849228]
[1752392272682,0.08170308,118110.0,118100.0,1.6057299]
[1752392272981,0.08170308,118110.0,118100.0,1.77622416]
[1752392272982,0.25097828,118110.0,118100.0,1.77622416]
[1752392273176,0.25097828,118110.0,118100.0,1.6057299]
[1752392273582,0.08170308,118110.0,118100.0,1.77622416]
[1752392273773,0.25097828,118110.0,118100.0,1.6057299]
[1752392274686,0.25097828,118110.0,118100.0,2.1057299]
[1752392274983,0.25097828,118110.0,118100.0,1.9364404]
[1752392275179,0.25097828,118110.0,118100.0,1.5756404]
[1752392275384,0.29812828,118110.0,118100.0,1.5756404]
[1752392276387,0.29812828,118110.0,118100.0,1.9364404]
[1752392276781,0.29812828,118110.0,118100.0,1.5756404]
[1752392277181,0.29812828,118110.0,118100.0,1.23465188]
[1752392277382,0.29812828,118110.0,118100.0,1.9370404]
[1752392277680,0.29812828,118110.0,118100.0,1.5761204]
[1752392277681,0.71659828,118110.0,118100.0,1.5761204]
[1752392277887,0.35579828,118110.0,118100.0,1.5761204]
[1752392278187,0.35579828,118110.0,118100.0,1.0761204]
[1752392278377,0.71659828,118110.0,118100.0,1.0761204]
[1752392279087,0.71659828,118110.0,118100.0,1.2454099]
[1752392279490,0.71659828,118110.0,118100.0,1.0761204]
[1752392279990,0.71659828,118110.0,118100.0,1.2454099]
[1752392280177,0.35579828,118110.0,118100.0,1.2454099]
[1752392280584,0.71659828,118110.0,118100.0,1.2454099]
[1752392280985,0.71659828,118110.0,118100.0,1.0761204]
[1752392281893,0.71659828,118110.0,118100.0,1.2454099]
[1752392283293,0.29812828,118110.0,118100.0,1.2454099]
[1752392283493,0.29832828,118110.0,118100.0,1.2454099]
[1752392284293,0.32328828,118110.0,118100.0,1.2454099]
[1752392284495,0.35599828,118110.0,118100.0,1.2454099]
[1752392286496,0.35599828,118110.0,118100.0,0.12493188]
[1752392286497,0.88729254,118110.0,118100.0,0.12493188]
[1752392286798,0.2742395,118100.0,118090.0,0.0578]
[1752392286995,0.97622802,118100.0,118090.0,0.63656]
[1752392287190,0.2742539,118090.0,118080.0,0.0018937]
[1752392287391,0.80574816,118090.0,118080.0,0.5810137]
[1752392287700,0.8259656,118090.0,118080.0,0.5810137]
[1752392287900,0.8259656,118090.0,118080.0,0.75150796]
[1752392288100,0.8259656,118090.0,118080.0,0.75186796]
[1752392288803,0.88272384,118090.0,118080.0,0.5813737]
[1752392289003,0.88272384,118090.0,118080.0,0.0016937]
[1752392289203,0.88272384,118090.0,118080.0,0.5813737]
[1752392290004,0.88272384,118090.0,118080.0,0.5833737]
[1752392290301,0.88272384,118090.0,118080.0,0.6082337]
[1752392290302,0.65547134,118090.0,118080.0,0.6082337]
[1752392291800,0.65547134,118090.0,118080.0,0.6409737]
[1752392294208,0.65547134,118090.0,118080.0,1.0681044]
[1752392294403,0.23861134,118090.0,118080.0,1.67418683]
[1752392294608,0.2183939,118090.0,118080.0,1.44693433]
[1752392295199,0.2744539,118090.0,118080.0,1.44693433]
[1752392298206,0.29472389,118090.0,118080.0,1.44693433]
[1752392303417,0.29472389,118090.0,118080.0,0.68956363]
[1752392303610,0.29472389,118090.0,118080.0,0.88881613]
[1752392303913,0.29472389,118090.0,118080.0,0.66156363]
[1752392304113,0.29472389,118090.0,118080.0,0.07932363]
[1752392304315,0.29472389,118090.0,118080.0,0.30657613]
[1752392304510,0.2013969,118060.0,118050.0,0.0576]
[1752392304720,0.8623494,118060.0,118050.0,0.0576]
[1752392305020,0.88264439,118060.0,118050.0,0.03274]
[1752392305216,0.65539189,118060.0,118050.0,0.0576]
[1752392305617,0.65539189,118060.0,118050.0,0.0636]
[1752392305917,0.65539189,118060.0,118050.0,0.0666]
[1752392307817,0.88264439,118060.0,118050.0,0.0666]
[1752392308319,0.8623494,118060.0,118050.0,0.0666]
[1752392309014,0.8623494,118060.0,118050.0,0.009]
[1752392309217,0.88208012,118060.0,118050.0,0.009]
[1752392309621,0.65482762,118060.0,118050.0,0.009]
[1752392310919,0.88208012,118060.0,118050.0,0.009]
[1752392311120,0.65482762,118060.0,118050.0,0.009]
[1752392311320,0.65482762,118060.0,118050.0,0.004]
[1752392311819,0.65482762,118060.0,118050.0,0.001]
[1752392323424,0.29402762,118060.0,118050.0,0.2840425]
[1752392323726,0.29422762,118060.0,118050.0,0.2840425]
[1752392323922,0.65502762,118060.0,118050.0,0.2840425]
[1752392324127,0.29422762,118060.0,118050.0,0.2840425]
[1752392324329,0.65502762,118060.0,118050.0,0.05679]
[1752392324526,0.65502762,118060.0,118050.0,0.2609825]
[1752392325230,0.65502762,118060.0,118050.0,0.03373]
[1752392325430,0.65502762,118060.0,118050.0,0.2609825]
[1752392326233,0.65502762,118060.0,118050.0,0.03373]
[1752392326932,0.65502762,118060.0,118050.0,0.2609825]
[1752392327831,0.65502762,118060.0,118050.0,0.03373]
[1752392328030,0.65502762,118060.0,118050.0,0.2609825]
[1752392328830,0.65502762,118060.0,118050.0,0.03373]
[1752392329132,0.65502762,118060.0,118050.0,0.2609825]
[1752392330231,0.65502762,118060.0,118050.0,0.03373]
[1752392333637,0.65502762,118060.0,118050.0,0.001]
[1752392337138,1.23742762,118060.0,118050.0,0.001]
[1752392339046,1.23742762,118060.0,118050.0,0.00092833]
[1752392341243,1.23742762,118060.0,118050.0,0.17028953]
[1752392341441,0.29422762,118060.0,118050.0,0.00092833]
[1752392341936,0.87646762,118060.0,118050.0,0.00092833]
[1752392342140,0.29422762,118060.0,118050.0,0.00092833]
[1752392342742,0.29422762,118060.0,118050.0,0.45333203]
[1752392345043,0.29422762,118060.0,118050.0,0.81413203]
[1752392347447,0.29422762,118060.0,118050.0,0.45333203]
[1752392348045,0.29422762,118060.0,118050.0,0.81413203]
[1752392348848,0.29422762,118060.0,118050.0,0.58687953]
[1752392349148,0.29422762,118060.0,118050.0,0.81413203]
[1752392350047,0.29422762,118060.0,118050.0,0.84469203]
[1752392351449,0.29422762,118060.0,118050.0,0.61743953]
[1752392351746,0.29422762,118060.0,118050.0,0.81413203]
[1752392354150,0.29422762,118060.0,118050.0,1.39617203]
[1752392354352,0.29422762,118060.0,118050.0,1.39609203]
[1752392355156,0.29422762,118060.0,118050.0,0.64477083]
[1752392355355,0.29422762,118060.0,118040.0,0.36193185]
[1752392355356,1.05944922,118060.0,118040.0,0.36193185]
[1752392355549,0.2690156,118040.0,118030.0,4e-05]
[1752392355755,0.2690586,118010.0,118000.0,0.58708781]
[1752392355947,0.2690586,118010.0,118000.0,0.64491641]
[1752392356144,0.28885548,118010.0,118000.0,0.64491641]
[1752392356354,0.2690586,118010.0,118000.0,0.81434941]
[1752392356549,0.2690586,118010.0,118000.0,0.82263273]
[1752392356954,0.2690586,118010.0,118000.0,0.82963273]
[1752392357452,0.2690586,118010.0,118000.0,0.83363273]
[1752392358949,0.2690586,118010.0,118000.0,0.82963273]